[Event "Betsys MČR v online bleskovém šachu 2021"]
[Site "Chess.com"]
[Date "2021.04.17"]
[Round "7"]
[White "TerezaRodshtein"]
[Black "8_olda_8"]
[Result "1-0"]
[WhiteElo "2168"]
[BlackElo "1795"]
[TimeControl "180+1"]
[EndTime "10:11:32 PDT"]
[Termination "Uživatel TerezaRodshtein zvítězil na čas"]

1. e4 {[%clk 0:03:00.9]} 1... e6 {[%clk 0:02:51.4]} 2. d4 {[%clk 0:02:53.5]}
2... c5 {[%clk 0:02:50.8]} 3. Nf3 {[%clk 0:02:51.7]} 3... cxd4 {[%clk
0:02:50.6]} 4. Nxd4 {[%clk 0:02:51.4]} 4... a6 {[%clk 0:02:49.1]} 5. Bd3 {[%clk
0:02:49.1]} 5... Qc7 {[%clk 0:02:49]} 6. O-O {[%clk 0:02:48.5]} 6... Nf6 {[%clk
0:02:49.1]} 7. Be3 {[%clk 0:02:44.5]} 7... b5 {[%clk 0:02:45.5]} 8. f4 {[%clk
0:02:38.7]} 8... Bb7 {[%clk 0:02:45.4]} 9. Nd2 {[%clk 0:02:34.1]} 9... Bc5
{[%clk 0:02:39.4]} 10. c3 {[%clk 0:02:22]} 10... d6 {[%clk 0:02:35.9]} 11. Qe2
{[%clk 0:02:19.4]} 11... Nbd7 {[%clk 0:02:18.6]} 12. Rae1 {[%clk 0:02:15]} 12...
g6 {[%clk 0:01:54.7]} 13. Kh1 {[%clk 0:02:14.2]} 13... e5 {[%clk 0:01:52.4]} 14.
N4f3 {[%clk 0:02:07.2]} 14... Ng4 {[%clk 0:01:48.2]} 15. Bxc5 {[%clk 0:02:03.4]}
15... Qxc5 {[%clk 0:01:48.1]} 16. Ng5 {[%clk 0:01:54.1]} 16... Ngf6 {[%clk
0:00:43.5]} 17. fxe5 {[%clk 0:01:39.3]} 17... dxe5 {[%clk 0:00:40.3]} 18. a4
{[%clk 0:01:30.5]} 18... b4 {[%clk 0:00:28.1]} 19. Bc4 {[%clk 0:01:28.9]} 19...
O-O {[%clk 0:00:25]} 20. Nb3 {[%clk 0:01:16]} 20... Qe7 {[%clk 0:00:21.4]} 21.
Na5 {[%clk 0:00:54]} 21... Nb6 {[%clk 0:00:15.1]} 22. Nxb7 {[%clk 0:00:52]}
22... Nxc4 {[%clk 0:00:14.7]} 23. Qxc4 {[%clk 0:00:50.7]} 23... Ng4 {[%clk
0:00:13]} 24. Nf3 {[%clk 0:00:24.7]} 24... Qxb7 {[%clk 0:00:12.8]} 25. h3 {[%clk
0:00:24.4]} 25... Nf6 {[%clk 0:00:06]} 26. Nxe5 {[%clk 0:00:24.2]} 26... Qe7
{[%clk 0:00:04.3]} 27. Nc6 {[%clk 0:00:21.2]} 1-0

[Event "Betsys MČR v online bleskovém šachu 2021"]
[Site "Chess.com"]
[Date "2021.04.17"]
[Round "7"]
[White "p_kana"]
[Black "phil3"]
[Result "0-1"]
[WhiteElo "1790"]
[BlackElo "2137"]
[TimeControl "180+1"]
[EndTime "10:11:32 PDT"]
[Termination "Uživatel phil3 zvítězil matem"]

1. e4 {[%clk 0:02:57.9]} 1... e5 {[%clk 0:02:09.8]} 2. Nf3 {[%clk 0:02:56.9]}
2... Nf6 {[%clk 0:02:10.3]} 3. Nxe5 {[%clk 0:02:56.1]} 3... Nxe4 {[%clk
0:02:10.6]} 4. Qe2 {[%clk 0:02:54.4]} 4... Qe7 {[%clk 0:02:10.8]} 5. Qxe4 {[%clk
0:02:50]} 5... d6 {[%clk 0:02:11]} 6. d4 {[%clk 0:02:43.8]} 6... dxe5 {[%clk
0:02:10.4]} 7. dxe5 {[%clk 0:02:39.6]} 7... Nc6 {[%clk 0:02:10.1]} 8. Bb5 {[%clk
0:02:32.7]} 8... Bd7 {[%clk 0:02:10.1]} 9. Bf4 {[%clk 0:02:12.3]} 9... g5 {[%clk
0:02:09.3]} 10. Bg3 {[%clk 0:02:10.5]} 10... f5 {[%clk 0:02:09.5]} 11. Qe2
{[%clk 0:02:01.2]} 11... f4 {[%clk 0:02:09.1]} 12. Qh5+ {[%clk 0:01:54.6]} 12...
Qf7 {[%clk 0:02:09.2]} 13. Qxg5 {[%clk 0:01:51.8]} 13... fxg3 {[%clk 0:02:07.8]}
14. hxg3 {[%clk 0:01:45]} 14... Bc5 {[%clk 0:01:54.9]} 15. O-O {[%clk
0:01:36.9]} 15... Rg8 {[%clk 0:01:42.9]} 16. Qh4 {[%clk 0:01:36.1]} 16... Rg4
{[%clk 0:01:38.1]} 17. e6 {[%clk 0:01:07.9]} 17... Bxe6 {[%clk 0:01:26.5]} 18.
Qh6 {[%clk 0:01:01.5]} 18... O-O-O {[%clk 0:01:16.4]} 19. Nc3 {[%clk 0:00:59.9]}
19... Qg6 {[%clk 0:00:51.9]} 20. Qxg6 {[%clk 0:00:56.4]} 20... Rxg6 {[%clk
0:00:46.8]} 21. Ne4 {[%clk 0:00:52.2]} 21... Bb6 {[%clk 0:00:44.7]} 22. c4
{[%clk 0:00:51.1]} 22... a6 {[%clk 0:00:44.1]} 23. Bxc6 {[%clk 0:00:50]} 23...
bxc6 {[%clk 0:00:44.2]} 24. b3 {[%clk 0:00:50]} 24... Bf5 {[%clk 0:00:41.8]} 25.
Nc3 {[%clk 0:00:43.5]} 25... Rdg8 {[%clk 0:00:39.3]} 26. g4 {[%clk 0:00:40.9]}
26... Rxg4 {[%clk 0:00:38.7]} 27. c5 {[%clk 0:00:33.1]} 27... Rxg2+ {[%clk
0:00:37.2]} 28. Kh1 {[%clk 0:00:31.7]} 28... Bxc5 {[%clk 0:00:36.9]} 29. Rae1
{[%clk 0:00:30.4]} 29... Bd6 {[%clk 0:00:35.2]} 30. f4 {[%clk 0:00:28.3]} 30...
Rc2 {[%clk 0:00:30.8]} 31. Ne4 {[%clk 0:00:26.8]} 31... Bxe4+ {[%clk 0:00:30.3]}
32. Rxe4 {[%clk 0:00:26.1]} 32... Rgg2 {[%clk 0:00:29.1]} 33. Rc1 {[%clk
0:00:21.6]} 33... Rh2+ {[%clk 0:00:27.2]} 34. Kg1 {[%clk 0:00:21.6]} 34... Bc5+
{[%clk 0:00:24.4]} 35. Kf1 {[%clk 0:00:18.6]} 35... Rh1# {[%clk 0:00:22.9]} 0-1

[Event "Betsys MČR v online bleskovém šachu 2021"]
[Site "Chess.com"]
[Date "2021.04.17"]
[Round "7"]
[White "Kokos3"]
[Black "Hapinka"]
[Result "1-0"]
[WhiteElo "1556"]
[BlackElo "1825"]
[TimeControl "180+1"]
[EndTime "10:11:32 PDT"]
[Termination "Uživatel Kokos3 zvítězil po vzdání soupeře"]

1. e4 {[%clk 0:03:00.9]} 1... e5 {[%clk 0:02:59.3]} 2. Nf3 {[%clk 0:03:00.2]}
2... Nc6 {[%clk 0:02:59.3]} 3. Bc4 {[%clk 0:02:59.6]} 3... Bc5 {[%clk
0:02:58.8]} 4. O-O {[%clk 0:02:47.9]} 4... Nf6 {[%clk 0:02:49]} 5. Nc3 {[%clk
0:02:43.5]} 5... O-O {[%clk 0:02:48]} 6. d3 {[%clk 0:02:37.8]} 6... h6 {[%clk
0:02:46.4]} 7. a3 {[%clk 0:02:30.6]} 7... d6 {[%clk 0:02:34.8]} 8. h3 {[%clk
0:02:23.8]} 8... Be6 {[%clk 0:02:33.2]} 9. Bxe6 {[%clk 0:02:11.1]} 9... fxe6
{[%clk 0:02:32.9]} 10. b4 {[%clk 0:02:08.9]} 10... Bb6 {[%clk 0:02:29]} 11. Na4
{[%clk 0:02:06.6]} 11... Qe8 {[%clk 0:02:24.5]} 12. Nxb6 {[%clk 0:02:03.6]}
12... axb6 {[%clk 0:02:24.7]} 13. Bb2 {[%clk 0:01:58.9]} 13... Nh5 {[%clk
0:02:23.2]} 14. d4 {[%clk 0:01:37.5]} 14... exd4 {[%clk 0:02:19.4]} 15. Nxd4
{[%clk 0:01:36.5]} 15... Nxd4 {[%clk 0:02:18.5]} 16. Bxd4 {[%clk 0:01:34.5]}
16... e5 {[%clk 0:02:17]} 17. Be3 {[%clk 0:01:31.7]} 17... Nf4 {[%clk
0:02:13.4]} 18. Bxf4 {[%clk 0:01:30.1]} 18... Rxf4 {[%clk 0:02:13]} 19. Qd5+
{[%clk 0:01:28.5]} 19... Kh8 {[%clk 0:02:09.7]} 20. Qxb7 {[%clk 0:01:26.7]}
20... Rb8 {[%clk 0:01:41.1]} 21. Qxc7 {[%clk 0:01:23.2]} 21... Rc8 {[%clk
0:01:40.9]} 22. Qxd6 {[%clk 0:01:18.1]} 22... Rxc2 {[%clk 0:01:40.6]} 23. Qxb6
{[%clk 0:01:15.4]} 23... Rxe4 {[%clk 0:01:18.5]} 24. Rae1 {[%clk 0:01:12.6]}
24... Ree2 {[%clk 0:01:11.7]} 25. Rxe2 {[%clk 0:01:11.6]} 25... Rxe2 {[%clk
0:01:11.5]} 26. Rd1 {[%clk 0:01:08.7]} 26... Kh7 {[%clk 0:00:35.4]} 27. Qd8
{[%clk 0:01:01]} 27... Qg6 {[%clk 0:00:24]} 28. Qd5 {[%clk 0:00:50]} 28... e4
{[%clk 0:00:20.2]} 29. a4 {[%clk 0:00:46.6]} 29... e3 {[%clk 0:00:20.1]} 30.
fxe3 {[%clk 0:00:42.4]} 30... Rxe3 {[%clk 0:00:19.9]} 31. a5 {[%clk 0:00:37.6]}
31... Re2 {[%clk 0:00:15.9]} 32. b5 {[%clk 0:00:31.7]} 32... Qf6 {[%clk
0:00:08]} 33. Qd3+ {[%clk 0:00:28.6]} 1-0

[Event "Betsys MČR v online bleskovém šachu 2021"]
[Site "Chess.com"]
[Date "2021.04.17"]
[Round "7"]
[White "PaulS_CR"]
[Black "Federer302"]
[Result "1/2-1/2"]
[WhiteElo "1845"]
[BlackElo "1603"]
[TimeControl "180+1"]
[EndTime "10:11:32 PDT"]
[Termination "Remíza opakováním pozice"]

1. Nf3 {[%clk 0:02:57.9]} 1... Nf6 {[%clk 0:02:59.4]} 2. c4 {[%clk 0:02:53.8]}
2... e6 {[%clk 0:02:58.6]} 3. e3 {[%clk 0:02:52.4]} 3... b6 {[%clk 0:02:56.1]}
4. Nc3 {[%clk 0:02:49.9]} 4... Bb7 {[%clk 0:02:55.4]} 5. Be2 {[%clk 0:02:48.8]}
5... Bb4 {[%clk 0:02:52.1]} 6. O-O {[%clk 0:02:45.4]} 6... Bxc3 {[%clk
0:02:51.5]} 7. dxc3 {[%clk 0:02:44.7]} 7... O-O {[%clk 0:02:52.2]} 8. b3 {[%clk
0:02:43.3]} 8... d6 {[%clk 0:02:51.7]} 9. Nd4 {[%clk 0:02:41.1]} 9... e5 {[%clk
0:02:41.5]} 10. Nf5 {[%clk 0:02:38.6]} 10... Nbd7 {[%clk 0:02:27.1]} 11. a4
{[%clk 0:02:32.2]} 11... Nc5 {[%clk 0:02:10.1]} 12. Bb2 {[%clk 0:02:27.7]} 12...
Qd7 {[%clk 0:02:00.8]} 13. Ng3 {[%clk 0:02:26.8]} 13... a5 {[%clk 0:01:53.3]}
14. Ba3 {[%clk 0:02:23.9]} 14... Rad8 {[%clk 0:01:43]} 15. Qc2 {[%clk
0:02:10.5]} 15... Nfe4 {[%clk 0:01:24.5]} 16. Bf3 {[%clk 0:01:57.8]} 16... Nxg3
{[%clk 0:01:22.5]} 17. hxg3 {[%clk 0:01:56.9]} 17... Bxf3 {[%clk 0:01:21.5]} 18.
gxf3 {[%clk 0:01:55.8]} 18... f5 {[%clk 0:01:02.2]} 19. f4 {[%clk 0:01:49.8]}
19... e4 {[%clk 0:00:56.1]} 20. Bxc5 {[%clk 0:01:47.4]} 20... dxc5 {[%clk
0:00:52]} 21. Rad1 {[%clk 0:01:46.5]} 21... Qe7 {[%clk 0:00:51.5]} 22. Qe2
{[%clk 0:01:43.1]} 22... Rxd1 {[%clk 0:00:46.3]} 23. Rxd1 {[%clk 0:01:42]} 23...
Rd8 {[%clk 0:00:47.2]} 24. Rd2 {[%clk 0:01:41.2]} 24... Rd6 {[%clk 0:00:36.7]}
25. Rd5 {[%clk 0:01:35.1]} 25... Qd7 {[%clk 0:00:32]} 26. Qd1 {[%clk 0:01:28.7]}
26... Rxd5 {[%clk 0:00:28]} 27. cxd5 {[%clk 0:01:22.2]} 27... c6 {[%clk
0:00:20]} 28. c4 {[%clk 0:01:16.6]} 28... cxd5 {[%clk 0:00:16.2]} 29. cxd5
{[%clk 0:01:16.3]} 29... Kf7 {[%clk 0:00:15]} 30. Kg2 {[%clk 0:01:07.3]} 30...
g6 {[%clk 0:00:14.7]} 31. Qd2 {[%clk 0:01:00.8]} 31... Qd6 {[%clk 0:00:14.6]}
32. Qd1 {[%clk 0:00:52.5]} 32... Qd7 {[%clk 0:00:14.4]} 33. Kh3 {[%clk
0:00:47.2]} 33... Qd6 {[%clk 0:00:13.4]} 34. Qd2 {[%clk 0:00:42]} 34... Qd7
{[%clk 0:00:13.3]} 35. Kg2 {[%clk 0:00:35.2]} 35... Qd6 {[%clk 0:00:12.9]} 36.
Qd1 {[%clk 0:00:31.8]} 36... Qd7 {[%clk 0:00:12.7]} 1/2-1/2

[Event "Betsys MČR v online bleskovém šachu 2021"]
[Site "Chess.com"]
[Date "2021.04.17"]
[Round "7"]
[White "KarelZalesky"]
[Black "KatkaZ"]
[Result "1-0"]
[WhiteElo "1838"]
[BlackElo "1849"]
[TimeControl "180+1"]
[EndTime "10:11:34 PDT"]
[Termination "Uživatel KarelZalesky zvítězil na čas"]

1. e4 {[%clk 0:02:58.3]} 1... c5 {[%clk 0:02:55.4]} 2. Nf3 {[%clk 0:02:57]} 2...
e6 {[%clk 0:02:55.3]} 3. d4 {[%clk 0:02:56]} 3... cxd4 {[%clk 0:02:55.4]} 4.
Nxd4 {[%clk 0:02:55.9]} 4... a6 {[%clk 0:02:55.9]} 5. Nc3 {[%clk 0:02:55]} 5...
Qc7 {[%clk 0:02:56.2]} 6. Be2 {[%clk 0:02:53.6]} 6... Nf6 {[%clk 0:02:56.4]} 7.
O-O {[%clk 0:02:51.9]} 7... Bb4 {[%clk 0:02:55.2]} 8. Qd3 {[%clk 0:02:30.5]}
8... d6 {[%clk 0:02:49.9]} 9. Bd2 {[%clk 0:02:23.6]} 9... Bc5 {[%clk 0:02:38.8]}
10. Nb3 {[%clk 0:02:07.5]} 10... Ba7 {[%clk 0:02:37.2]} 11. Be3 {[%clk 0:02:04]}
11... b6 {[%clk 0:02:22]} 12. Rad1 {[%clk 0:01:58.9]} 12... Bb7 {[%clk
0:02:11.4]} 13. Qxd6 {[%clk 0:01:57.2]} 13... Qxd6 {[%clk 0:02:10.5]} 14. Rxd6
{[%clk 0:01:56.3]} 14... Nxe4 {[%clk 0:02:02.7]} 15. Nxe4 {[%clk 0:01:54.7]}
15... Bxe4 {[%clk 0:02:01.5]} 16. c4 {[%clk 0:01:31.2]} 16... Nd7 {[%clk
0:01:26.3]} 17. Rfd1 {[%clk 0:01:29]} 17... Nf6 {[%clk 0:01:14.7]} 18. Bxb6
{[%clk 0:01:23.8]} 18... Bxb6 {[%clk 0:01:13]} 19. Rxb6 {[%clk 0:01:23.3]} 19...
O-O {[%clk 0:01:10.5]} 20. f3 {[%clk 0:01:20]} 20... Bg6 {[%clk 0:01:03.7]} 21.
Rdd6 {[%clk 0:01:15.1]} 21... a5 {[%clk 0:01:02.7]} 22. Nc5 {[%clk 0:01:03.7]}
22... Rfc8 {[%clk 0:00:56]} 23. Rdc6 {[%clk 0:00:47.5]} 23... h6 {[%clk
0:00:41.8]} 24. Rxc8+ {[%clk 0:00:40]} 24... Rxc8 {[%clk 0:00:40.6]} 25. Rb5
{[%clk 0:00:39.7]} 25... Ra8 {[%clk 0:00:29.4]} 26. b3 {[%clk 0:00:32.5]} 26...
Ne8 {[%clk 0:00:20.9]} 27. Nb7 {[%clk 0:00:31]} 27... Nc7 {[%clk 0:00:14.4]} 28.
Rxa5 {[%clk 0:00:28]} 28... Rb8 {[%clk 0:00:09.7]} 29. Nc5 {[%clk 0:00:25.5]}
29... Kf8 {[%clk 0:00:01.2]} 30. Nd7+ {[%clk 0:00:24.4]} 1-0

[Event "Betsys MČR v online bleskovém šachu 2021"]
[Site "Chess.com"]
[Date "2021.04.17"]
[Round "7"]
[White "Bagr92"]
[Black "EXTREME_STRATEGY007"]
[Result "0-1"]
[WhiteElo "1522"]
[BlackElo "1239"]
[TimeControl "180+1"]
[EndTime "10:11:35 PDT"]
[Termination "Uživatel EXTREME_STRATEGY007 zvítězil na čas"]

1. e4 {[%clk 0:03:00.5]} 1... c5 {[%clk 0:02:56.9]} 2. Nc3 {[%clk 0:03:01.4]}
2... e6 {[%clk 0:02:56]} 3. f4 {[%clk 0:03:02.3]} 3... Nc6 {[%clk 0:02:54.4]} 4.
Nf3 {[%clk 0:03:03.2]} 4... Nge7 {[%clk 0:02:51.2]} 5. d4 {[%clk 0:03:03.7]}
5... cxd4 {[%clk 0:02:48.4]} 6. Nxd4 {[%clk 0:03:04.6]} 6... d5 {[%clk
0:02:47.1]} 7. Be3 {[%clk 0:03:02.8]} 7... Nxd4 {[%clk 0:02:39]} 8. Bxd4 {[%clk
0:02:54.6]} 8... Nc6 {[%clk 0:02:37.6]} 9. exd5 {[%clk 0:02:49.2]} 9... exd5
{[%clk 0:02:31.8]} 10. Bb5 {[%clk 0:02:46.8]} 10... Bb4 {[%clk 0:02:20.7]} 11.
O-O {[%clk 0:02:46]} 11... O-O {[%clk 0:02:19.2]} 12. Bd3 {[%clk 0:02:43.2]}
12... Nxd4 {[%clk 0:02:16.2]} 13. Qh5 {[%clk 0:02:09.4]} 13... g6 {[%clk
0:02:07.4]} 14. Qh6 {[%clk 0:01:57.7]} 14... Bf5 {[%clk 0:02:04.5]} 15. Rad1
{[%clk 0:01:37.3]} 15... Bxd3 {[%clk 0:01:57.2]} 16. Rxd3 {[%clk 0:01:35.7]}
16... Bxc3 {[%clk 0:01:55.4]} 17. Rxc3 {[%clk 0:01:23.1]} 17... Nf5 {[%clk
0:01:52.7]} 18. Qh3 {[%clk 0:01:20.1]} 18... Qb6+ {[%clk 0:01:50.9]} 19. Kh1
{[%clk 0:01:18]} 19... Qxb2 {[%clk 0:01:50.5]} 20. g4 {[%clk 0:01:17]} 20... Ng7
{[%clk 0:01:42.2]} 21. f5 {[%clk 0:01:10.2]} 21... Qb5 {[%clk 0:01:28.1]} 22. f6
{[%clk 0:01:02.2]} 22... Ne6 {[%clk 0:01:21.6]} 23. Rcf3 {[%clk 0:01:03.1]}
23... Rfc8 {[%clk 0:01:08.7]} 24. Re1 {[%clk 0:00:34.5]} 24... h5 {[%clk
0:01:07]} 25. gxh5 {[%clk 0:00:29.9]} 25... Ng5 {[%clk 0:01:01.3]} 26. Qg3
{[%clk 0:00:14.9]} 26... Nxf3 {[%clk 0:01:00.8]} 27. Qxf3 {[%clk 0:00:12.7]}
27... Qc6 {[%clk 0:00:53.9]} 28. hxg6 {[%clk 0:00:09.2]} 28... d4 {[%clk
0:00:53.4]} 29. Re4 {[%clk 0:00:09.3]} 29... Re8 {[%clk 0:00:44]} 30. gxf7+
{[%clk 0:00:07.8]} 30... Kxf7 {[%clk 0:00:43]} 31. Qh5+ {[%clk 0:00:05]} 31...
Kxf6 {[%clk 0:00:43.1]} 32. Qh6+ {[%clk 0:00:04.5]} 32... Kf5 {[%clk 0:00:40.8]}
33. Qh7+ {[%clk 0:00:04.8]} 33... Kg5 {[%clk 0:00:38.3]} 34. Qg7+ {[%clk
0:00:01.7]} 34... Kh5 {[%clk 0:00:37.8]} 0-1

[Event "Betsys MČR v online bleskovém šachu 2021"]
[Site "Chess.com"]
[Date "2021.04.17"]
[Round "7"]
[White "KajaOl"]
[Black "Innerz98"]
[Result "0-1"]
[WhiteElo "2281"]
[BlackElo "2125"]
[TimeControl "180+1"]
[EndTime "10:11:36 PDT"]
[Termination "Uživatel Innerz98 zvítězil po vzdání soupeře"]

1. e4 {[%clk 0:03:00.9]} 1... e5 {[%clk 0:02:34.9]} 2. Nf3 {[%clk 0:03:00]} 2...
Nf6 {[%clk 0:02:33.6]} 3. Nxe5 {[%clk 0:02:57.9]} 3... d6 {[%clk 0:02:33.7]} 4.
Nf3 {[%clk 0:02:58.1]} 4... Nxe4 {[%clk 0:02:33.6]} 5. d4 {[%clk 0:02:58.3]}
5... d5 {[%clk 0:02:33.6]} 6. Bd3 {[%clk 0:02:58.1]} 6... Be7 {[%clk 0:02:34.1]}
7. O-O {[%clk 0:02:56.5]} 7... Nc6 {[%clk 0:02:32]} 8. c4 {[%clk 0:02:55.6]}
8... Nb4 {[%clk 0:02:31.7]} 9. Be2 {[%clk 0:02:53.7]} 9... O-O {[%clk
0:02:31.7]} 10. Nc3 {[%clk 0:02:52.7]} 10... Nf6 {[%clk 0:02:27.4]} 11. a3
{[%clk 0:02:51.3]} 11... Nc6 {[%clk 0:02:27.6]} 12. c5 {[%clk 0:02:48.5]} 12...
a5 {[%clk 0:02:26]} 13. b3 {[%clk 0:02:46.5]} 13... Bf5 {[%clk 0:02:25]} 14. Be3
{[%clk 0:02:42.3]} 14... Ng4 {[%clk 0:02:24.1]} 15. Bf4 {[%clk 0:02:40.6]} 15...
Nf6 {[%clk 0:02:22.4]} 16. h3 {[%clk 0:02:39.6]} 16... Ne4 {[%clk 0:02:19.5]}
17. Rc1 {[%clk 0:02:28.8]} 17... Bf6 {[%clk 0:02:15]} 18. Be3 {[%clk 0:02:24.8]}
18... Re8 {[%clk 0:02:10]} 19. Nb5 {[%clk 0:01:58.2]} 19... Qd7 {[%clk
0:01:56.9]} 20. Bf4 {[%clk 0:01:55.9]} 20... Rac8 {[%clk 0:01:53.8]} 21. Bd3
{[%clk 0:01:52.4]} 21... Ne7 {[%clk 0:01:23.7]} 22. b4 {[%clk 0:01:45.5]} 22...
axb4 {[%clk 0:01:16.6]} 23. axb4 {[%clk 0:01:45.8]} 23... Ng6 {[%clk 0:01:14.4]}
24. Bh2 {[%clk 0:01:40.8]} 24... Nh4 {[%clk 0:01:03.4]} 25. Nxh4 {[%clk
0:01:37.9]} 25... Bxh4 {[%clk 0:01:04.3]} 26. Rc2 {[%clk 0:01:29.9]} 26... Re6
{[%clk 0:00:42.8]} 27. Re2 {[%clk 0:01:23.6]} 27... Rg6 {[%clk 0:00:39.7]} 28.
Kh1 {[%clk 0:01:20.1]} 28... Bxh3 {[%clk 0:00:20.6]} 29. Bxe4 {[%clk 0:01:12.1]}
29... dxe4 {[%clk 0:00:17.8]} 30. gxh3 {[%clk 0:01:09.3]} 30... Qxh3 {[%clk
0:00:18.7]} 31. f4 {[%clk 0:00:58.7]} 31... exf3 {[%clk 0:00:17.7]} 32. Rd2
{[%clk 0:00:45]} 32... Rg2 {[%clk 0:00:16.5]} 0-1

[Event "Betsys MČR v online bleskovém šachu 2021"]
[Site "Chess.com"]
[Date "2021.04.17"]
[Round "7"]
[White "svTomas"]
[Black "Miky2610"]
[Result "0-1"]
[WhiteElo "1436"]
[BlackElo "1828"]
[TimeControl "180+1"]
[EndTime "10:11:37 PDT"]
[Termination "Uživatel Miky2610 zvítězil matem"]

1. e4 {[%clk 0:03:00.9]} 1... c6 {[%clk 0:02:59.3]} 2. d4 {[%clk 0:02:59.8]}
2... d5 {[%clk 0:02:59.2]} 3. e5 {[%clk 0:02:57.8]} 3... Bf5 {[%clk 0:02:58.3]}
4. c3 {[%clk 0:02:53.6]} 4... e6 {[%clk 0:02:58.1]} 5. Bd2 {[%clk 0:02:50.8]}
5... c5 {[%clk 0:02:58]} 6. Nf3 {[%clk 0:02:48.9]} 6... Nc6 {[%clk 0:02:56.7]}
7. Bb5 {[%clk 0:02:47.6]} 7... a6 {[%clk 0:02:54.2]} 8. Bxc6+ {[%clk 0:02:47.1]}
8... bxc6 {[%clk 0:02:54.2]} 9. Qa4 {[%clk 0:02:44.8]} 9... Qb6 {[%clk
0:02:49.7]} 10. O-O {[%clk 0:02:35.4]} 10... Bd3 {[%clk 0:02:34.6]} 11. Re1
{[%clk 0:02:33.4]} 11... Bb5 {[%clk 0:02:32.4]} 12. Qc2 {[%clk 0:02:31.9]} 12...
Ne7 {[%clk 0:02:27.9]} 13. a4 {[%clk 0:02:27.4]} 13... Bc4 {[%clk 0:02:16.4]}
14. Na3 {[%clk 0:02:25.4]} 14... Bb3 {[%clk 0:02:05.2]} 15. Qd3 {[%clk
0:02:24.7]} 15... c4 {[%clk 0:02:04.8]} 16. Qe3 {[%clk 0:02:21.1]} 16... Bxa4
{[%clk 0:02:02.1]} 17. Qg5 {[%clk 0:02:18.9]} 17... Ng6 {[%clk 0:01:58]} 18.
Nxc4 {[%clk 0:02:01.3]} 18... dxc4 {[%clk 0:01:50.6]} 19. Rxa4 {[%clk
0:02:00.9]} 19... Qxb2 {[%clk 0:01:43.8]} 20. Rea1 {[%clk 0:01:53]} 20... Be7
{[%clk 0:01:37]} 21. Qe3 {[%clk 0:01:46.7]} 21... Qb6 {[%clk 0:01:29.2]} 22. h4
{[%clk 0:01:22.5]} 22... Nxh4 {[%clk 0:01:19.6]} 23. Nxh4 {[%clk 0:01:19.6]}
23... Bxh4 {[%clk 0:01:19.3]} 24. Rb4 {[%clk 0:01:15.8]} 24... Qc7 {[%clk
0:01:14.9]} 25. Rab1 {[%clk 0:01:14.3]} 25... O-O {[%clk 0:01:10.1]} 26. Rb7
{[%clk 0:01:13.3]} 26... Qa5 {[%clk 0:01:02.1]} 27. Qh3 {[%clk 0:01:11.5]} 27...
Bd8 {[%clk 0:00:53.3]} 28. Qg4 {[%clk 0:01:09.5]} 28... Kh8 {[%clk 0:00:29.4]}
29. Rd7 {[%clk 0:00:50]} 29... Bc7 {[%clk 0:00:24.6]} 30. Rb7 {[%clk 0:00:47.9]}
30... Rac8 {[%clk 0:00:23.7]} 31. Bg5 {[%clk 0:00:45.6]} 31... h6 {[%clk
0:00:18.5]} 32. Be7 {[%clk 0:00:44.2]} 32... Rfe8 {[%clk 0:00:17.5]} 33. Bf6
{[%clk 0:00:37.2]} 33... gxf6 {[%clk 0:00:16.9]} 34. exf6 {[%clk 0:00:36.6]}
34... Rg8 {[%clk 0:00:16]} 35. Qh5 {[%clk 0:00:36]} 35... Qa1+ {[%clk
0:00:15.7]} 36. Qd1 {[%clk 0:00:26.9]} 36... Qxd1# {[%clk 0:00:14.6]} 0-1

[Event "Betsys MČR v online bleskovém šachu 2021"]
[Site "Chess.com"]
[Date "2021.04.17"]
[Round "7"]
[White "berny643"]
[Black "Vesselovsky52"]
[Result "1-0"]
[WhiteElo "2572"]
[BlackElo "2327"]
[TimeControl "180+1"]
[EndTime "10:11:38 PDT"]
[Termination "Uživatel berny643 zvítězil na čas"]

1. d4 {[%clk 0:02:19.2]} 1... Nf6 {[%clk 0:02:57.2]} 2. c4 {[%clk 0:02:16]} 2...
e6 {[%clk 0:02:56]} 3. Nc3 {[%clk 0:02:15.3]} 3... Bb4 {[%clk 0:02:54.4]} 4. Qc2
{[%clk 0:02:13.1]} 4... O-O {[%clk 0:02:53]} 5. a3 {[%clk 0:02:10.9]} 5... Bxc3+
{[%clk 0:02:52.2]} 6. Qxc3 {[%clk 0:02:11.8]} 6... b6 {[%clk 0:02:50.8]} 7. e3
{[%clk 0:02:10.7]} 7... Bb7 {[%clk 0:02:49.8]} 8. Nf3 {[%clk 0:02:10.4]} 8... d6
{[%clk 0:02:48.8]} 9. Be2 {[%clk 0:02:10.2]} 9... Nbd7 {[%clk 0:02:47.7]} 10.
O-O {[%clk 0:02:09.9]} 10... c5 {[%clk 0:02:44.2]} 11. Rd1 {[%clk 0:02:09.4]}
11... Rc8 {[%clk 0:02:40.3]} 12. Qe1 {[%clk 0:02:08.5]} 12... Ne4 {[%clk
0:02:31.4]} 13. b3 {[%clk 0:02:07.4]} 13... f5 {[%clk 0:02:28.5]} 14. Bb2 {[%clk
0:02:05.3]} 14... Qe7 {[%clk 0:02:26.9]} 15. Nd2 {[%clk 0:01:54.8]} 15... Nxd2
{[%clk 0:02:24.3]} 16. Rxd2 {[%clk 0:01:51.2]} 16... Qg5 {[%clk 0:02:18.5]} 17.
Bf1 {[%clk 0:01:45]} 17... Nf6 {[%clk 0:02:11]} 18. dxc5 {[%clk 0:01:35.1]}
18... dxc5 {[%clk 0:01:58.4]} 19. f4 {[%clk 0:01:28]} 19... Qh5 {[%clk
0:01:50.1]} 20. Rad1 {[%clk 0:01:23]} 20... h6 {[%clk 0:01:42.1]} 21. h3 {[%clk
0:01:22.4]} 21... Bc6 {[%clk 0:01:29.6]} 22. Rd6 {[%clk 0:01:21.3]} 22... Qf7
{[%clk 0:01:13.7]} 23. b4 {[%clk 0:01:20.6]} 23... Ne4 {[%clk 0:01:08.4]} 24.
R6d3 {[%clk 0:01:20]} 24... cxb4 {[%clk 0:01:06.6]} 25. axb4 {[%clk 0:01:19.7]}
25... a5 {[%clk 0:00:56.8]} 26. bxa5 {[%clk 0:01:09]} 26... bxa5 {[%clk
0:00:54.2]} 27. Qxa5 {[%clk 0:01:09.6]} 27... Ra8 {[%clk 0:00:48.6]} 28. Qb6
{[%clk 0:01:03.9]} 28... Rfc8 {[%clk 0:00:32.1]} 29. Be5 {[%clk 0:01:02.3]}
29... Kh7 {[%clk 0:00:26.8]} 30. Qb2 {[%clk 0:00:58.9]} 30... Ra6 {[%clk
0:00:23]} 31. Rb3 {[%clk 0:00:57.8]} 31... Nc5 {[%clk 0:00:20]} 32. Rb4 {[%clk
0:00:53.8]} 32... Rca8 {[%clk 0:00:18.3]} 33. Qd4 {[%clk 0:00:50.6]} 33... Ne4
{[%clk 0:00:13.3]} 34. Rb6 {[%clk 0:00:50.3]} 34... Rxb6 {[%clk 0:00:11.1]} 35.
Qxb6 {[%clk 0:00:49.9]} 35... Rc8 {[%clk 0:00:09.6]} 36. Ra1 {[%clk 0:00:48.8]}
36... Qg6 {[%clk 0:00:06.7]} 37. Ra7 {[%clk 0:00:47.4]} 37... Nf6 {[%clk
0:00:03.2]} 38. Qd4 {[%clk 0:00:45.6]} 38... Kg8 {[%clk 0:00:01.3]} 39. Qd6
{[%clk 0:00:44.2]} 1-0